[Event "Live Chess"]
[Site "Chess.com"]
[Date "2023.05.21"]
[Round "-"]
[White "GMHarry-youtube"]
[Black "jimwad"]
[Result "1-0"]
[WhiteElo "2022"]
[BlackElo "1207"]
[TimeControl "300"]
[EndTime "16:55:51 PDT"]
[Termination "GMHarry-youtube won by checkmate"]

1. e4 {[%clk 0:04:58.5]} 1... e5 {[%clk 0:04:58.8]} 2. Nf3 {[%clk 0:04:56.6]}
2... Nc6 {[%clk 0:04:57.8]} 3. Bc4 {[%clk 0:04:55.8]} 3... Bc5 {[%clk
0:04:56.7]} 4. c3 {[%clk 0:04:53.6]} 4... Nf6 {[%clk 0:04:55.3]} 5. d3 {[%clk
0:04:52.5]} 5... O-O {[%clk 0:04:54.1]} 6. O-O {[%clk 0:04:51.5]} 6... d6 {[%clk
0:04:51.1]} 7. h3 {[%clk 0:04:49.7]} 7... h6 {[%clk 0:04:49.4]} 8. a4 {[%clk
0:04:48.8]} 8... a5 {[%clk 0:04:48]} 9. Be3 {[%clk 0:04:45.6]} 9... Bxe3 {[%clk
0:04:46.4]} 10. fxe3 {[%clk 0:04:45.5]} 10... Be6 {[%clk 0:04:42.6]} 11. Bxe6
{[%clk 0:04:41.4]} 11... fxe6 {[%clk 0:04:40.8]} 12. Qb3 {[%clk 0:04:39.6]}
12... b6 {[%clk 0:04:36.8]} 13. Qxe6+ {[%clk 0:04:30.9]} 13... Kh8 {[%clk
0:04:35.5]} 14. Nh4 {[%clk 0:04:25.2]} 14... Kh7 {[%clk 0:04:28.5]} 15. Qf5+
{[%clk 0:04:21.8]} 15... Kg8 {[%clk 0:04:21]} 16. Qg6 {[%clk 0:04:18.9]} 16...
Ne7 {[%clk 0:04:15.4]} 17. Qg3 {[%clk 0:04:16.4]} 17... Nh5 {[%clk 0:04:09]} 18.
Qh2 {[%clk 0:04:13.4]} 18... Rxf1+ {[%clk 0:04:07]} 19. Kxf1 {[%clk 0:04:13.3]}
19... Qf8+ {[%clk 0:04:05.9]} 20. Nf3 {[%clk 0:04:11.8]} 20... Ng6 {[%clk
0:03:51.4]} 21. Ke2 {[%clk 0:04:07.1]} 21... Nf6 {[%clk 0:03:49.4]} 22. Nbd2
{[%clk 0:04:05.2]} 22... Re8 {[%clk 0:03:37.1]} 23. Rf1 {[%clk 0:04:02]} 23...
Qe7 {[%clk 0:03:34.1]} 24. g4 {[%clk 0:03:59.5]} 24... Nh7 {[%clk 0:03:28.1]}
25. Qg3 {[%clk 0:03:57.1]} 25... Ng5 {[%clk 0:03:26.8]} 26. Nxg5 {[%clk
0:03:52]} 26... Qxg5 {[%clk 0:03:25.6]} 27. Rf5 {[%clk 0:03:50.6]} 27... Qe7
{[%clk 0:03:21]} 28. Rh5 {[%clk 0:03:48.3]} 28... Rf8 {[%clk 0:03:15]} 29. Nf3
{[%clk 0:03:42.3]} 29... Kh7 {[%clk 0:03:09.8]} 30. Rf5 {[%clk 0:03:40.4]} 30...
Rxf5 {[%clk 0:03:07.1]} 31. gxf5 {[%clk 0:03:40.3]} 31... Nh8 {[%clk 0:03:02]}
32. Nh4 {[%clk 0:03:38.6]} 32... Qf6 {[%clk 0:02:56.2]} 33. Kf3 {[%clk
0:03:35.7]} 33... Nf7 {[%clk 0:02:54.9]} 34. Qg6+ {[%clk 0:03:31.8]} 34... Qxg6
{[%clk 0:02:52.7]} 35. fxg6+ {[%clk 0:03:30.6]} 35... Kg8 {[%clk 0:02:51.6]} 36.
gxf7+ {[%clk 0:03:30.5]} 36... Kxf7 {[%clk 0:02:50.2]} 37. Kg4 {[%clk
0:03:30.4]} 37... g5 {[%clk 0:02:48.2]} 38. Nf5 {[%clk 0:03:27.9]} 38... Kf6
{[%clk 0:02:43.5]} 39. Nxh6 {[%clk 0:03:26.4]} 39... Kg6 {[%clk 0:02:42.2]} 40.
Nf5 {[%clk 0:03:25.3]} 40... Kf6 {[%clk 0:02:40.9]} 41. Kh5 {[%clk 0:03:24.9]}
41... g4 {[%clk 0:02:38.5]} 42. hxg4 {[%clk 0:03:23.9]} 42... Kf7 {[%clk
0:02:35.2]} 43. g5 {[%clk 0:03:23.8]} 43... Kg8 {[%clk 0:02:31.7]} 44. g6 {[%clk
0:03:23.7]} 44... Kh8 {[%clk 0:02:28.9]} 45. g7+ {[%clk 0:03:22.8]} 45... Kg8
{[%clk 0:02:27.9]} 46. Kg6 {[%clk 0:03:22.7]} 46... d5 {[%clk 0:02:25]} 47. Ne7#
{[%clk 0:03:22.6]} 1-0

[Event "Live Chess"]
[Site "Chess.com"]
[Date "2023.05.21"]
[Round "-"]
[White "elvenstar"]
[Black "LL220284LL"]
[Result "1/2-1/2"]
[WhiteElo "1564"]
[BlackElo "2347"]
[TimeControl "300"]
[EndTime "16:56:05 PDT"]
[Termination "Game drawn by repetition"]

1. e4 {[%clk 0:04:58.8]} 1... c5 {[%clk 0:04:59.2]} 2. f4 {[%clk 0:04:57.3]}
2... Nc6 {[%clk 0:04:58.7]} 3. Nf3 {[%clk 0:04:56.2]} 3... d6 {[%clk 0:04:57.7]}
4. Bc4 {[%clk 0:04:54.9]} 4... h6 {[%clk 0:04:54.5]} 5. O-O {[%clk 0:04:53.8]}
5... Bg4 {[%clk 0:04:52.8]} 6. d3 {[%clk 0:04:52.7]} 6... Nf6 {[%clk 0:04:50.9]}
7. c3 {[%clk 0:04:51.6]} 7... e6 {[%clk 0:04:50.1]} 8. Be3 {[%clk 0:04:50.5]}
8... Be7 {[%clk 0:04:49]} 9. Nbd2 {[%clk 0:04:49.4]} 9... O-O {[%clk 0:04:47.4]}
10. Qc2 {[%clk 0:04:47.5]} 10... d5 {[%clk 0:04:46.5]} 11. exd5 {[%clk
0:04:45.6]} 11... exd5 {[%clk 0:04:46.4]} 12. Bb5 {[%clk 0:04:43.9]} 12... Qc7
{[%clk 0:04:41]} 13. Bxc6 {[%clk 0:04:41.6]} 13... Qxc6 {[%clk 0:04:37.5]} 14.
Ne5 {[%clk 0:04:40.4]} 14... Qc7 {[%clk 0:04:36.8]} 15. Ndf3 {[%clk 0:04:22.1]}
15... Bd6 {[%clk 0:04:34.7]} 16. Rac1 {[%clk 0:04:16.1]} 16... Rae8 {[%clk
0:04:31.1]} 17. d4 {[%clk 0:04:05.2]} 17... Ne4 {[%clk 0:04:26.7]} 18. Nxg4
{[%clk 0:03:58.6]} 18... b6 {[%clk 0:04:20.3]} 19. Nge5 {[%clk 0:03:44.7]} 19...
Re7 {[%clk 0:04:15.9]} 20. Qb3 {[%clk 0:03:33.5]} 20... c4 {[%clk 0:04:13]} 21.
Qc2 {[%clk 0:03:31.5]} 21... Rfe8 {[%clk 0:04:11.3]} 22. Nd2 {[%clk 0:03:16.1]}
22... f6 {[%clk 0:04:08.8]} 23. Ng6 {[%clk 0:03:11.9]} 23... Rd7 {[%clk
0:04:03.9]} 24. Nxe4 {[%clk 0:03:04.9]} 24... Rxe4 {[%clk 0:04:03.8]} 25. Qf2
{[%clk 0:02:57.8]} 25... Rd8 {[%clk 0:04:01.4]} 26. b3 {[%clk 0:02:45.7]} 26...
Rde8 {[%clk 0:03:59.9]} 27. Rfe1 {[%clk 0:02:15.3]} 27... Qf7 {[%clk 0:03:55.7]}
28. f5 {[%clk 0:02:11.6]} 28... Qc7 {[%clk 0:03:52.1]} 29. g3 {[%clk 0:02:03.8]}
29... b5 {[%clk 0:03:49.3]} 30. Nf4 {[%clk 0:01:59.8]} 30... Bxf4 {[%clk
0:03:46]} 31. Bxf4 {[%clk 0:01:57.4]} 31... Qa5 {[%clk 0:03:45.4]} 32. Rxe4
{[%clk 0:01:48.6]} 32... Rxe4 {[%clk 0:03:45.3]} 33. Re1 {[%clk 0:01:39]} 33...
Qxc3 {[%clk 0:03:43.3]} 34. Rxe4 {[%clk 0:01:27.6]} 34... dxe4 {[%clk 0:03:42]}
35. Be3 {[%clk 0:01:26.3]} 35... cxb3 {[%clk 0:03:39.6]} 36. axb3 {[%clk
0:01:24.3]} 36... Qxb3 {[%clk 0:03:39.5]} 37. Qf4 {[%clk 0:01:15.7]} 37... Qd1+
{[%clk 0:03:36]} 38. Kg2 {[%clk 0:01:14.3]} 38... Qe2+ {[%clk 0:03:35.3]} 39.
Kh3 {[%clk 0:01:12.3]} 39... Qh5+ {[%clk 0:03:34]} 40. Kg2 {[%clk 0:01:11]}
40... Qe2+ {[%clk 0:03:33.2]} 41. Kh3 {[%clk 0:01:10]} 41... Qh5+ {[%clk
0:03:32.4]} 42. Kg2 {[%clk 0:01:08.3]} 42... Qe2+ {[%clk 0:03:31.7]} 1/2-1/2

[Event "Live Chess"]
[Site "Chess.com"]
[Date "2023.05.21"]
[Round "-"]
[White "grillage"]
[Black "EdenHazard8"]
[Result "0-1"]
[WhiteElo "1831"]
[BlackElo "1999"]
[TimeControl "300"]
[EndTime "16:56:10 PDT"]
[Termination "EdenHazard8 won by resignation"]

1. d4 {[%clk 0:04:58.5]} 1... Nf6 {[%clk 0:04:58.5]} 2. Nc3 {[%clk 0:04:56.4]}
2... g6 {[%clk 0:04:58.4]} 3. Bf4 {[%clk 0:04:52.5]} 3... Bg7 {[%clk 0:04:56.3]}
4. e4 {[%clk 0:04:51.1]} 4... d6 {[%clk 0:04:54.9]} 5. Qd2 {[%clk 0:04:47.9]}
5... Nbd7 {[%clk 0:04:48]} 6. Nf3 {[%clk 0:04:45.9]} 6... c5 {[%clk 0:04:42]} 7.
d5 {[%clk 0:04:38.7]} 7... Ng4 {[%clk 0:04:40]} 8. O-O-O {[%clk 0:04:28.1]} 8...
Nge5 {[%clk 0:04:37]} 9. h4 {[%clk 0:04:19.6]} 9... a6 {[%clk 0:04:32.8]} 10. h5
{[%clk 0:04:17.1]} 10... b5 {[%clk 0:04:29.4]} 11. hxg6 {[%clk 0:04:14.7]} 11...
hxg6 {[%clk 0:04:27.6]} 12. Rxh8+ {[%clk 0:04:13.3]} 12... Bxh8 {[%clk
0:04:27.5]} 13. Nxe5 {[%clk 0:04:04.3]} 13... Nxe5 {[%clk 0:04:25.3]} 14. Be2
{[%clk 0:03:50.9]} 14... Bb7 {[%clk 0:04:08.9]} 15. Rh1 {[%clk 0:03:47.7]} 15...
Bg7 {[%clk 0:04:06.1]} 16. Bg5 {[%clk 0:03:34.5]} 16... Qc7 {[%clk 0:03:49.5]}
17. f4 {[%clk 0:03:31]} 17... Nd7 {[%clk 0:03:36.8]} 18. f5 {[%clk 0:03:25.4]}
18... O-O-O {[%clk 0:03:32.7]} 19. fxg6 {[%clk 0:03:17.7]} 19... fxg6 {[%clk
0:03:32.6]} 20. Bg4 {[%clk 0:03:08.6]} 20... Kb8 {[%clk 0:03:26.5]} 21. Rh7
{[%clk 0:03:07.1]} 21... Rg8 {[%clk 0:03:03.3]} 22. Be6 {[%clk 0:03:05]} 22...
Bxc3 {[%clk 0:02:58.2]} 23. Qxc3 {[%clk 0:03:03.1]} 23... Rf8 {[%clk 0:02:55.7]}
24. Rxe7 {[%clk 0:02:58.1]} 24... Bc8 {[%clk 0:02:53.3]} 25. Qg7 {[%clk
0:02:48.9]} 25... Qa5 {[%clk 0:02:48.1]} 26. c3 {[%clk 0:02:10.3]} 26... Rf1+
{[%clk 0:02:44.9]} 27. Kc2 {[%clk 0:02:06.3]} 27... Qa4+ {[%clk 0:02:42.6]} 28.
Kd3 {[%clk 0:01:54.7]} 28... Qc4+ {[%clk 0:02:39.5]} 29. Ke3 {[%clk 0:01:50.8]}
29... Ne5 {[%clk 0:02:10.7]} 30. Rb7+ {[%clk 0:00:31.9]} 30... Bxb7 {[%clk
0:02:08.8]} 31. Qg8+ {[%clk 0:00:29.9]} 31... Ka7 {[%clk 0:02:07.5]} 0-1

[Event "Live Chess"]
[Site "Chess.com"]
[Date "2023.05.21"]
[Round "-"]
[White "toog"]
[Black "manthanit"]
[Result "1-0"]
[WhiteElo "2582"]
[BlackElo "1044"]
[TimeControl "300"]
[EndTime "16:56:11 PDT"]
[Termination "toog won by resignation"]

1. e4 {[%clk 0:04:58.7]} 1... e6 {[%clk 0:04:59]} 2. d4 {[%clk 0:04:55.7]} 2...
d5 {[%clk 0:04:58.6]} 3. e5 {[%clk 0:04:54.1]} 3... c5 {[%clk 0:04:57.1]} 4. c3
{[%clk 0:04:52.8]} 4... Nc6 {[%clk 0:04:51.9]} 5. Nf3 {[%clk 0:04:50.3]} 5... a6
{[%clk 0:04:51]} 6. a3 {[%clk 0:04:48.8]} 6... Qb6 {[%clk 0:04:48]} 7. b4 {[%clk
0:04:47.2]} 7... cxd4 {[%clk 0:04:46.7]} 8. cxd4 {[%clk 0:04:47.1]} 8... Nge7
{[%clk 0:04:43.9]} 9. Be2 {[%clk 0:04:44.5]} 9... Nf5 {[%clk 0:04:42.7]} 10. Bb2
{[%clk 0:04:44]} 10... a5 {[%clk 0:04:39.6]} 11. b5 {[%clk 0:04:42]} 11... Na7
{[%clk 0:04:12.4]} 12. Nc3 {[%clk 0:04:39.8]} 12... Bd7 {[%clk 0:04:08]} 13. Na4
{[%clk 0:04:32.1]} 13... Qd8 {[%clk 0:03:56.3]} 14. Qb3 {[%clk 0:04:27.8]} 14...
Be7 {[%clk 0:03:52.4]} 15. O-O {[%clk 0:04:19.6]} 15... O-O {[%clk 0:03:50.4]}
16. Rfc1 {[%clk 0:04:16.7]} 16... Rc8 {[%clk 0:03:47.5]} 17. Rxc8 {[%clk
0:04:11.7]} 17... Qxc8 {[%clk 0:03:45.2]} 18. Rc1 {[%clk 0:04:08]} 18... Qb8
{[%clk 0:03:44]} 19. Nc5 {[%clk 0:04:05.2]} 19... h6 {[%clk 0:03:38.5]} 20. Nxd7
{[%clk 0:04:03.8]} 20... Qd8 {[%clk 0:03:07.5]} 21. Nxf8 {[%clk 0:04:00.6]}
21... Bxf8 {[%clk 0:03:03.4]} 22. a4 {[%clk 0:03:57]} 22... Be7 {[%clk
0:03:00.9]} 23. Ba3 {[%clk 0:03:55.3]} 23... Kf8 {[%clk 0:02:48.5]} 24. Bd3
{[%clk 0:03:53.1]} 24... Qb6 {[%clk 0:02:41.3]} 25. Bxf5 {[%clk 0:03:50.6]}
25... exf5 {[%clk 0:02:39.6]} 26. Bxe7+ {[%clk 0:03:49.2]} 26... Kxe7 {[%clk
0:02:38.4]} 27. Qa3+ {[%clk 0:03:49]} 27... Kd8 {[%clk 0:02:34.7]} 28. Qf8+
{[%clk 0:03:45.8]} 28... Kd7 {[%clk 0:02:32.5]} 29. e6+ {[%clk 0:03:45.1]} 29...
Qxe6 {[%clk 0:02:00.1]} 30. Ne5+ {[%clk 0:03:40.3]} 30... Qxe5 {[%clk 0:01:52]}
31. dxe5 {[%clk 0:03:40.2]} 1-0

[Event "Live Chess"]
[Site "Chess.com"]
[Date "2023.05.21"]
[Round "-"]
[White "SupremeTactician"]
[Black "HoarseyHorsey"]
[Result "1-0"]
[WhiteElo "2342"]
[BlackElo "1431"]
[TimeControl "300"]
[EndTime "16:56:12 PDT"]
[Termination "SupremeTactician won by resignation"]

1. e4 {[%clk 0:04:58.6]} 1... c5 {[%clk 0:04:58.5]} 2. Nf3 {[%clk 0:04:57.8]}
2... e6 {[%clk 0:04:58]} 3. d4 {[%clk 0:04:57.1]} 3... cxd4 {[%clk 0:04:57.5]}
4. Nxd4 {[%clk 0:04:57]} 4... Nf6 {[%clk 0:04:56.8]} 5. Nc3 {[%clk 0:04:56.7]}
5... Nc6 {[%clk 0:04:56.1]} 6. Nxc6 {[%clk 0:04:56.1]} 6... bxc6 {[%clk
0:04:56]} 7. Be3 {[%clk 0:04:55.6]} 7... Bb4 {[%clk 0:04:55]} 8. Bd3 {[%clk
0:04:54.7]} 8... d5 {[%clk 0:04:53.4]} 9. exd5 {[%clk 0:04:54.6]} 9... cxd5
{[%clk 0:04:53]} 10. Bd2 {[%clk 0:04:54.1]} 10... O-O {[%clk 0:04:51.8]} 11. O-O
{[%clk 0:04:53.2]} 11... Bb7 {[%clk 0:04:50.6]} 12. a3 {[%clk 0:04:52.6]} 12...
Ba5 {[%clk 0:04:49.7]} 13. b4 {[%clk 0:04:50]} 13... Bc7 {[%clk 0:04:48.8]} 14.
Qf3 {[%clk 0:04:44.1]} 14... e5 {[%clk 0:04:40.8]} 15. Qh3 {[%clk 0:04:35.4]}
15... e4 {[%clk 0:04:31.9]} 16. Be2 {[%clk 0:04:30.9]} 16... d4 {[%clk
0:04:26.6]} 17. Nb5 {[%clk 0:04:30.2]} 17... Bb6 {[%clk 0:04:25.5]} 18. Bg5
{[%clk 0:04:27.9]} 18... a6 {[%clk 0:04:19.1]} 19. Nxd4 {[%clk 0:04:18.6]} 19...
Qxd4 {[%clk 0:04:13.1]} 20. Rad1 {[%clk 0:04:14.9]} 20... Qe5 {[%clk 0:04:10.8]}
21. Qh4 {[%clk 0:04:12.6]} 21... Nd5 {[%clk 0:03:57.7]} 22. Bf4 {[%clk
0:03:49.7]} 22... Nxf4 {[%clk 0:03:55.7]} 23. Bc4 {[%clk 0:03:47.9]} 23... e3
{[%clk 0:03:26.1]} 24. fxe3 {[%clk 0:03:44.7]} 24... Nxg2 {[%clk 0:03:21.1]} 25.
Qg3 {[%clk 0:03:36.7]} 25... Nxe3 {[%clk 0:03:17.1]} 26. Qxe5 {[%clk 0:03:29.8]}
26... Ng4+ {[%clk 0:03:10.7]} 27. Qd4 {[%clk 0:03:27.2]} 27... Bxd4+ {[%clk
0:03:06.1]} 28. Rxd4 {[%clk 0:03:27.1]} 28... Nf6 {[%clk 0:03:03.2]} 29. Bb3
{[%clk 0:03:24.6]} 29... Be4 {[%clk 0:02:56.9]} 30. Rxf6 {[%clk 0:03:22.1]}
30... gxf6 {[%clk 0:02:55.4]} 31. Rxe4 {[%clk 0:03:21.5]} 31... Kh8 {[%clk
0:02:52.4]} 32. Rf4 {[%clk 0:03:20.2]} 32... Rg8+ {[%clk 0:02:51.5]} 33. Kf2
{[%clk 0:03:19.1]} 33... Rad8 {[%clk 0:02:48.9]} 34. Rxf6 {[%clk 0:03:17.2]}
34... Rd2+ {[%clk 0:02:48]} 35. Ke3 {[%clk 0:03:16.5]} 35... Rxh2 {[%clk
0:02:44.9]} 36. Rxa6 {[%clk 0:03:15.6]} 36... Rh3+ {[%clk 0:02:40.8]} 37. Kf4
{[%clk 0:03:14.1]} 37... Rg6 {[%clk 0:02:32.4]} 38. Rxg6 {[%clk 0:03:07.8]}
38... hxg6 {[%clk 0:02:29]} 39. b5 {[%clk 0:03:06.8]} 39... Rh5 {[%clk
0:02:22.5]} 40. a4 {[%clk 0:03:05.6]} 40... Kg7 {[%clk 0:02:15.1]} 41. b6 {[%clk
0:03:04.5]} 41... Rc5 {[%clk 0:02:13.9]} 42. b7 {[%clk 0:03:00.7]} 42... Rf5+
{[%clk 0:02:08.3]} 43. Ke4 {[%clk 0:02:59.4]} 1-0

[Event "Live Chess"]
[Site "Chess.com"]
[Date "2023.05.21"]
[Round "-"]
[White "LanceMaster23"]
[Black "NAZRIZ1977"]
[Result "1-0"]
[WhiteElo "1873"]
[BlackElo "2017"]
[TimeControl "300"]
[EndTime "16:56:14 PDT"]
[Termination "LanceMaster23 won by resignation"]

1. Nf3 {[%clk 0:04:59.1]} 1... g6 {[%clk 0:04:57.4]} 2. d4 {[%clk 0:04:58.5]}
2... Bg7 {[%clk 0:04:54.9]} 3. Bf4 {[%clk 0:04:58]} 3... Nf6 {[%clk 0:04:54.1]}
4. e3 {[%clk 0:04:57.5]} 4... O-O {[%clk 0:04:53.6]} 5. h3 {[%clk 0:04:57.1]}
5... d5 {[%clk 0:04:53.2]} 6. Be2 {[%clk 0:04:56.7]} 6... c5 {[%clk 0:04:52.8]}
7. c3 {[%clk 0:04:56.2]} 7... Nc6 {[%clk 0:04:52.4]} 8. Qb3 {[%clk 0:04:54.5]}
8... Qb6 {[%clk 0:04:39.2]} 9. Nbd2 {[%clk 0:04:53.4]} 9... c4 {[%clk
0:04:37.6]} 10. Qc2 {[%clk 0:04:52.3]} 10... Nd7 {[%clk 0:04:33.7]} 11. O-O
{[%clk 0:04:50.2]} 11... e5 {[%clk 0:04:32.4]} 12. dxe5 {[%clk 0:04:49.6]} 12...
Ndxe5 {[%clk 0:04:31.7]} 13. Nxe5 {[%clk 0:04:48.5]} 13... Nxe5 {[%clk
0:04:31.2]} 14. Nf3 {[%clk 0:04:47.6]} 14... Nxf3+ {[%clk 0:04:29.7]} 15. Bxf3
{[%clk 0:04:43]} 15... Be6 {[%clk 0:04:26.2]} 16. Rad1 {[%clk 0:04:40.7]} 16...
Rfd8 {[%clk 0:04:24.9]} 17. Rd2 {[%clk 0:04:29.8]} 17... Qc5 {[%clk 0:04:23.4]}
18. Rfd1 {[%clk 0:04:22.5]} 18... b5 {[%clk 0:04:21.3]} 19. e4 {[%clk
0:04:20.2]} 19... a6 {[%clk 0:04:13.2]} 20. exd5 {[%clk 0:04:17.4]} 20... Bf5
{[%clk 0:04:12.6]} 21. Be4 {[%clk 0:04:13]} 21... Bxe4 {[%clk 0:04:11.6]} 22.
Qxe4 {[%clk 0:04:12.3]} 1-0

[Event "Live Chess"]
[Site "Chess.com"]
[Date "2023.05.21"]
[Round "-"]
[White "Conradical12"]
[Black "Shepherds_Pie"]
[Result "1-0"]
[WhiteElo "1598"]
[BlackElo "1912"]
[TimeControl "300"]
[EndTime "16:56:41 PDT"]
[Termination "Conradical12 won by resignation"]

1. e4 {[%clk 0:04:59]} 1... e6 {[%clk 0:04:54.5]} 2. Nf3 {[%clk 0:04:58.6]} 2...
d5 {[%clk 0:04:43.8]} 3. exd5 {[%clk 0:04:58]} 3... exd5 {[%clk 0:04:42]} 4. d4
{[%clk 0:04:57.4]} 4... Nc6 {[%clk 0:04:40.8]} 5. c4 {[%clk 0:04:56.9]} 5... Nf6
{[%clk 0:04:39.2]} 6. Nc3 {[%clk 0:04:56.3]} 6... Be7 {[%clk 0:04:37]} 7. Bg5
{[%clk 0:04:55.7]} 7... dxc4 {[%clk 0:04:35.6]} 8. Bxc4 {[%clk 0:04:54.7]} 8...
O-O {[%clk 0:04:34.5]} 9. O-O {[%clk 0:04:53.4]} 9... Bg4 {[%clk 0:04:31.3]} 10.
Re1 {[%clk 0:04:52.4]} 10... Bxf3 {[%clk 0:04:25.7]} 11. Qxf3 {[%clk 0:04:50.8]}
11... Nxd4 {[%clk 0:04:24.4]} 12. Qxb7 {[%clk 0:04:49.6]} 12... Rb8 {[%clk
0:04:19.1]} 13. Qxa7 {[%clk 0:04:47.7]} 13... Rxb2 {[%clk 0:04:16.7]} 14. Rad1
{[%clk 0:04:45.8]} 14... c5 {[%clk 0:04:12.5]} 15. Qxe7 {[%clk 0:04:43]} 15...
Qb6 {[%clk 0:03:47.8]} 16. Nb5 {[%clk 0:04:26.3]} 16... Ng4 {[%clk 0:03:36.7]}
17. Qxf7+ {[%clk 0:03:58.9]} 1-0

[Event "Live Chess"]
[Site "Chess.com"]
[Date "2023.05.21"]
[Round "-"]
[White "Jo1ts"]
[Black "Biranidun"]
[Result "0-1"]
[WhiteElo "789"]
[BlackElo "2655"]
[TimeControl "300"]
[EndTime "16:57:01 PDT"]
[Termination "Biranidun won by resignation"]

1. d4 {[%clk 0:04:55.2]} 1... Nf6 {[%clk 0:04:58.7]} 2. Bf4 {[%clk 0:04:53.5]}
2... g6 {[%clk 0:04:58.2]} 3. e3 {[%clk 0:04:49]} 3... Bg7 {[%clk 0:04:57.6]} 4.
Nf3 {[%clk 0:04:47.5]} 4... O-O {[%clk 0:04:57.3]} 5. Nbd2 {[%clk 0:04:43.8]}
5... d6 {[%clk 0:04:56.8]} 6. c3 {[%clk 0:04:41.7]} 6... c5 {[%clk 0:04:56.3]}
7. Bc4 {[%clk 0:04:36]} 7... b6 {[%clk 0:04:55.4]} 8. O-O {[%clk 0:04:32.2]}
8... Bb7 {[%clk 0:04:54.7]} 9. Qe2 {[%clk 0:04:22]} 9... a6 {[%clk 0:04:53.3]}
10. Bd3 {[%clk 0:04:11.4]} 10... Nbd7 {[%clk 0:04:51.8]} 11. Rac1 {[%clk
0:03:58]} 11... h6 {[%clk 0:04:48]} 12. h3 {[%clk 0:03:51.4]} 12... Re8 {[%clk
0:04:46.1]} 13. Bh2 {[%clk 0:03:38.4]} 13... b5 {[%clk 0:04:45.4]} 14. c4 {[%clk
0:03:30.6]} 14... b4 {[%clk 0:04:42.2]} 15. a3 {[%clk 0:03:26.6]} 15... a5
{[%clk 0:04:40.9]} 16. d5 {[%clk 0:03:09.9]} 16... Qb6 {[%clk 0:04:35.6]} 17.
Ne4 {[%clk 0:03:00.1]} 17... Nxe4 {[%clk 0:04:33.1]} 18. Bxe4 {[%clk 0:02:56.7]}
18... Nf6 {[%clk 0:04:26.6]} 19. Bd3 {[%clk 0:02:48.3]} 19... e6 {[%clk
0:04:25.7]} 20. e4 {[%clk 0:02:46.4]} 20... exd5 {[%clk 0:04:23.1]} 21. exd5
{[%clk 0:02:44]} 21... Rxe2 {[%clk 0:04:22]} 22. Bxe2 {[%clk 0:02:34.7]} 22...
Re8 {[%clk 0:04:18.9]} 23. Rfe1 {[%clk 0:02:29.7]} 23... Ba6 {[%clk 0:04:04.2]}
24. Nd2 {[%clk 0:02:17.1]} 24... h5 {[%clk 0:04:01.7]} 25. Ne4 {[%clk
0:02:13.4]} 25... Nxe4 {[%clk 0:03:59.6]} 0-1

[Event "Live Chess"]
[Site "Chess.com"]
[Date "2023.05.21"]
[Round "-"]
[White "xx_blindpuffin_xx"]
[Black "alanmike75"]
[Result "1-0"]
[WhiteElo "2209"]
[BlackElo "1551"]
[TimeControl "300"]
[EndTime "16:57:12 PDT"]
[Termination "xx_blindpuffin_xx won by resignation"]

1. d4 {[%clk 0:04:49.9]} 1... d5 {[%clk 0:04:57.4]} 2. Bf4 {[%clk 0:04:48.3]}
2... e6 {[%clk 0:04:56]} 3. e3 {[%clk 0:04:47.6]} 3... Bd6 {[%clk 0:04:54.8]} 4.
Bg3 {[%clk 0:04:46.8]} 4... Nf6 {[%clk 0:04:53.2]} 5. Nf3 {[%clk 0:04:45.4]}
5... Ne4 {[%clk 0:04:51.9]} 6. Bd3 {[%clk 0:04:43.8]} 6... f5 {[%clk 0:04:49.6]}
7. Bxd6 {[%clk 0:04:41.8]} 7... Nxd6 {[%clk 0:04:47.1]} 8. Ne5 {[%clk
0:04:39.6]} 8... O-O {[%clk 0:04:45.4]} 9. O-O {[%clk 0:04:36.7]} 9... Nd7
{[%clk 0:04:44.2]} 10. Nxd7 {[%clk 0:04:32.3]} 10... Bxd7 {[%clk 0:04:42.6]} 11.
Nd2 {[%clk 0:04:31.4]} 11... Ne4 {[%clk 0:04:30.6]} 12. c3 {[%clk 0:04:27.5]}
12... c6 {[%clk 0:04:27.6]} 13. Nf3 {[%clk 0:04:24.6]} 13... Nd6 {[%clk
0:04:22.4]} 14. Nd2 {[%clk 0:04:20.2]} 14... Qf6 {[%clk 0:04:18.3]} 15. Qe2
{[%clk 0:04:17.3]} 15... e5 {[%clk 0:04:13]} 16. dxe5 {[%clk 0:04:12.3]} 16...
Qxe5 {[%clk 0:04:11.7]} 17. c4 {[%clk 0:04:06.4]} 17... Rae8 {[%clk 0:04:03.6]}
18. Nf3 {[%clk 0:04:01.4]} 18... Qf6 {[%clk 0:03:59.5]} 19. cxd5 {[%clk
0:04:00]} 19... cxd5 {[%clk 0:03:58.1]} 20. Rfd1 {[%clk 0:03:58]} 20... f4
{[%clk 0:03:47.4]} 21. Qc2 {[%clk 0:03:50.8]} 21... fxe3 {[%clk 0:03:39.7]} 22.
fxe3 {[%clk 0:03:45.5]} 22... Ne4 {[%clk 0:03:29.1]} 23. Bf1 {[%clk 0:03:41.1]}
23... Bc6 {[%clk 0:03:26.5]} 24. b4 {[%clk 0:03:32.9]} 24... a6 {[%clk
0:03:24.6]} 25. a4 {[%clk 0:03:31.7]} 25... Qc3 {[%clk 0:03:07.9]} 26. Qxc3
{[%clk 0:03:26.4]} 26... Nxc3 {[%clk 0:03:06.2]} 27. Rd3 {[%clk 0:03:20.3]}
27... Nxa4 {[%clk 0:03:04.4]} 28. Nd4 {[%clk 0:03:19.5]} 28... Nb6 {[%clk
0:03:00.5]} 29. Nxc6 {[%clk 0:03:17.2]} 29... bxc6 {[%clk 0:02:59.1]} 30. Rxa6
{[%clk 0:03:16.7]} 30... Nc4 {[%clk 0:02:54.2]} 31. Rxc6 {[%clk 0:03:13.2]}
31... Nxe3 {[%clk 0:02:52.3]} 32. Rc1 {[%clk 0:03:08.1]} 32... Nxf1 {[%clk
0:02:48.9]} 33. Rxf1 {[%clk 0:03:08]} 33... Rxf1+ {[%clk 0:02:47.2]} 34. Kxf1
{[%clk 0:03:07.9]} 34... Rb8 {[%clk 0:02:45.4]} 35. Rb3 {[%clk 0:03:04.2]} 35...
Kf7 {[%clk 0:02:42.3]} 36. Ke2 {[%clk 0:03:03.8]} 36... Ke6 {[%clk 0:02:41.1]}
37. Kd3 {[%clk 0:03:02]} 37... Ke5 {[%clk 0:02:38.9]} 38. b5 {[%clk 0:03:01.1]}
38... Rb6 {[%clk 0:02:35.8]} 39. Rb1 {[%clk 0:02:57.4]} 39... d4 {[%clk
0:02:28.3]} 40. Kc4 {[%clk 0:02:56]} 40... g6 {[%clk 0:02:16.7]} 41. Kc5 {[%clk
0:02:54.9]} 41... Rb8 {[%clk 0:02:12.8]} 42. b6 {[%clk 0:02:53.8]} 42... d3
{[%clk 0:02:10.4]} 43. Re1+ {[%clk 0:02:49.4]} 43... Kf4 {[%clk 0:02:06.8]} 44.
Kd4 {[%clk 0:02:11.1]} 44... Rxb6 {[%clk 0:02:04.3]} 45. Rf1+ {[%clk 0:02:10.6]}
45... Kg5 {[%clk 0:02:02.7]} 46. Kxd3 {[%clk 0:02:09.8]} 46... Re6 {[%clk
0:01:58]} 47. Rg1 {[%clk 0:02:06.5]} 47... h5 {[%clk 0:01:55.1]} 48. Kd2 {[%clk
0:02:04.9]} 48... h4 {[%clk 0:01:53.3]} 49. Re1 {[%clk 0:02:03.6]} 49... Kh5
{[%clk 0:01:51.6]} 50. Rxe6 {[%clk 0:02:02.3]} 1-0